bitfinex/quotes_SOLUSD_20230116
["timestamp","ask_amount","ask_price","bid_price","bid_amount"]
[1673907376300,31.08,24.149,24.115,7.72319659]
[1673907376500,31.08,24.149,24.119,7.19125241]
[1673907376501,20.0,24.148,24.119,7.19125241]
[1673907376722,31.08,24.147,24.119,7.19125241]
[1673907376938,20.0,24.146,24.115,5.41887364]
[1673907377157,31.08,24.145,24.117,21.46196354]
[1673907377471,19.33,24.14,24.114,21.77678072]
[1673907377676,31.09,24.139,24.115,4.40198301]
[1673907377990,19.38,24.16,24.116,21.46196354]
[1673907378187,19.38,24.16,24.118,4.9440122]
[1673907378394,31.07,24.159,24.118,4.9440122]
[1673907378614,19.38,24.14,24.118,4.9440122]
[1673907378829,19.38,24.14,24.114,21.77678072]
[1673907378830,31.09,24.139,24.114,21.77678072]
[1673907379047,31.09,24.139,24.119,42.9023692]
[1673907379663,20.0,24.138,24.114,21.77678072]
[1673907379877,19.29,24.13,24.114,21.77678072]
[1673907380082,31.1,24.129,24.114,21.77678072]
[1673907380723,20.0,24.128,24.11,67.26361448]
[1673907380938,19.29,24.12,24.11,67.26361448]
[1673907381152,31.12,24.119,24.1,5000.0]
[1673907381359,31.12,24.119,24.1,4997.6955]
[1673907381360,19.38,24.11,24.1,4997.6955]
[1673907381550,31.13,24.109,24.1,4873.5443]
[1673907381761,19.29,24.12,24.1,4345.7233]
[1673907381762,20.0,24.108,24.1,4345.7233]
[1673907381983,36.00461,24.107,24.1,4345.7233]
[1673907382178,20.0,24.106,24.1,4345.7233]
[1673907382393,31.13,24.105,24.1,4345.7233]
[1673907382604,20.0,24.104,24.1,4345.7233]
[1673907382918,31.14,24.103,24.1,4274.9176]
[1673907383131,20.0,24.102,24.1,4184.1778]
[1673907383346,31.14,24.101,24.1,4184.1778]
[1673907383562,78.49890883,24.101,24.1,4184.1178]
[1673907383776,118.71530134,24.101,24.1,4184.1178]
[1673907384092,163.02466117,24.101,24.1,4184.1178]
[1673907384279,118.90977267,24.101,24.1,4184.1178]
[1673907384488,67.32874984,24.101,24.1,4184.1178]
[1673907384714,31.14,24.101,24.1,4184.1178]
[1673907384926,40.43152596,24.108,24.1,4184.1178]
[1673907385133,31.13,24.107,24.1,4184.1178]
[1673907385346,68.80720651,24.107,24.1,4184.1178]
[1673907385662,37.67720651,24.106,24.1,4184.1178]
[1673907385874,31.13,24.105,24.1,4184.1178]
[1673907386195,37.67720651,24.104,24.1,4184.1178]
[1673907386422,31.14,24.103,24.1,4184.1178]
[1673907386606,31.13,24.109,24.1,4174.1178]
[1673907386820,37.0,24.108,24.1,4056.63636827]
[1673907387033,36.00461,24.107,24.1,4046.63636827]
[1673907387243,24.87461,24.106,24.1,4046.63636827]
[1673907387449,36.00461,24.105,24.1,4032.73826827]
[1673907387659,4.87461,24.104,24.1,4032.73826827]
[1673907387874,31.14,24.103,24.1,4032.73826827]
[1673907388083,68.02023718,24.103,24.1,4032.73826827]
[1673907388297,40.43152596,24.104,24.1,4032.73826827]
[1673907388504,31.13,24.109,24.1,4032.73826827]
[1673907389340,28.83067263,24.108,24.1,4032.73826827]
[1673907389576,31.13,24.107,24.1,4032.73826827]
[1673907389759,74.58809851,24.107,24.1,4032.73826827]
[1673907390185,100.53440914,24.107,24.1,4032.73826827]
[1673907390386,61.95092063,24.107,24.1,4032.73826827]
[1673907390596,4.87461,24.106,24.1,4032.73826827]
[1673907390828,31.13,24.105,24.1,4032.73826827]
[1673907391034,98.03791514,24.105,24.1,4032.73826827]
[1673907391259,57.32160451,24.104,24.1,4032.73826827]
[1673907391469,31.14,24.103,24.1,4032.73826827]
[1673907391651,20.0,24.102,24.1,4032.73826827]
[1673907391869,31.14,24.101,24.1,4032.73826827]
[1673907392100,80.6903093,24.101,24.1,4032.73826827]
[1673907392298,118.01191381,24.101,24.1,4032.73826827]
[1673907393353,118.01191381,24.101,24.1,3997.73826827]
[1673907393551,162.3874231,24.101,24.1,3997.73826827]
[1673907394183,162.3874231,24.101,24.1,3987.73826827]
[1673907394719,162.3874231,24.101,24.1,3945.17346117]
[1673907394903,200.84938664,24.101,24.1,3902.87452731]
[1673907395115,71.56209679,24.101,24.1,3863.62031631]
[1673907395329,34.24049228,24.101,24.1,3858.62031631]
[1673907395539,4.87461,24.101,24.1,3858.62031631]
[1673907395747,19.41,24.11,24.1,3858.62031631]
[1673907396386,19.29,24.11,24.1,3858.62031631]
[1673907396595,33.47980828,24.118,24.101,17.0]
[1673907396814,19.25,24.12,24.101,17.0]
[1673907397029,31.12,24.119,24.101,17.0]
[1673907397456,19.38,24.13,24.101,17.0]
[1673907397662,19.38,24.13,24.101,23.25597795]
[1673907397983,31.1,24.129,24.101,23.25597795]
[1673907398187,77.73,24.14,24.101,23.25597795]
[1673907398507,19.43,24.14,24.103,4.17964601]
[1673907398718,31.09,24.139,24.104,17.0]
[1673907399028,31.09,24.139,24.105,7.04350833]
[1673907399235,19.43,24.14,24.106,17.0]
[1673907399450,31.09,24.139,24.107,4.56676101]
[1673907399768,77.52,24.16,24.108,51.94171149]
[1673907399769,19.38,24.15,24.108,51.94171149]
[1673907399975,19.38,24.15,24.11,7.01471694]
[1673907400289,19.38,24.15,24.111,37.0]
[1673907400478,31.08,24.149,24.112,7.94262233]
[1673907400690,31.08,24.149,24.113,37.0]
[1673907400901,30.08,24.149,24.114,5.34672755]
[1673907401337,30.08,24.149,24.115,39.47437815]
[1673907401527,30.08,24.149,24.116,5.82435164]
[1673907401740,19.38,24.14,24.116,5.82435164]
[1673907401962,21.46196354,24.159,24.116,5.82435164]
[1673907401963,19.38,24.15,24.116,39.47437815]
[1673907402156,19.38,24.15,24.117,5.50898894]
[1673907402157,31.08,24.149,24.117,5.50898894]
[1673907402589,31.08,24.149,24.119,4.4517598]
[1673907403543,31.08,24.149,24.118,39.47437815]
[1673907403759,19.38,24.14,24.119,39.47437815]
[1673907403968,19.38,24.14,24.113,20.0]
[1673907404157,19.38,24.14,24.101,26.20061766]
[1673907404368,19.38,24.14,24.112,6.58965249]
[1673907404597,19.38,24.14,24.113,20.0]
[1673907405211,19.38,24.14,24.114,4.20844857]
[1673907405415,31.08,24.147,24.114,4.20844857]
[1673907405637,20.0,24.146,24.102,5.57177472]
[1673907405863,19.21,24.14,24.107,4.65948968]
[1673907406051,19.21,24.14,24.114,5.95963149]
[1673907406261,19.21,24.14,24.079,128.2]
[1673907406481,19.21,24.14,24.106,4.00279171]
[1673907406803,77.52,24.16,24.111,4.45087047]
[1673907406804,19.38,24.15,24.111,4.45087047]
[1673907406992,31.07,24.159,24.111,4.45087047]
[1673907406993,31.07,24.159,24.111,24.45087047]
[1673907407202,31.07,24.159,24.113,6.86951726]
[1673907407417,77.52,24.18,24.112,144.81071627]
[1673907407418,19.38,24.17,24.12,19.25]
[1673907407655,31.04,24.179,24.122,4.82187279]
[1673907407853,31.04,24.179,24.132,5.66894741]
[1673907408043,31.04,24.179,24.123,21.78317]
[1673907408044,31.04,24.179,24.134,7.83323652]
[1673907408260,31.04,24.179,24.135,20.0]
[1673907408483,31.04,24.179,24.136,46.70003126]
[1673907408809,31.04,24.179,24.138,6.72057203]
[1673907408992,31.04,24.179,24.138,11.50077203]
[1673907409202,19.33,24.19,24.139,48.53863621]
[1673907409203,31.03,24.189,24.139,48.53863621]
[1673907409416,31.03,24.189,24.141,7.79123767]
[1673907409658,31.03,24.189,24.142,4.77941]
[1673907409659,23.53,24.189,24.142,4.77941]
[1673907409980,23.53,24.189,24.143,5.10023773]
[1673907410174,23.53,24.189,24.144,30.67743142]
[1673907410379,23.53,24.189,24.145,4.77882]
[1673907410588,23.53,24.189,24.146,42.35]
[1673907410802,23.53,24.189,24.148,6.12198207]
[1673907411008,23.53,24.189,24.149,20.0]
[1673907411235,23.53,24.189,24.149,83.05133308]
[1673907411445,31.01,24.199,24.151,6.77855836]
[1673907411660,31.01,24.199,24.15,73.66160125]
[1673907411661,31.01,24.199,24.153,6.95376941]
[1673907411859,31.01,24.199,24.154,20.0]
[1673907412079,31.01,24.199,24.154,156.50460961]
[1673907412279,31.01,24.199,24.155,112.82077273]
[1673907412497,31.01,24.199,24.156,25.43391918]
[1673907412702,31.01,24.199,24.158,7.98594085]
[1673907412912,31.01,24.199,24.16,5.76999093]
[1673907413123,31.01,24.199,24.161,20.0]
[1673907413335,31.01,24.199,24.161,80.93634169]
[1673907413549,31.01,24.199,24.163,7.56037019]
[1673907413884,31.01,24.199,24.164,86.82156894]
[1673907414058,19.38,24.22,24.165,6.80040571]
[1673907414269,19.38,24.22,24.166,24.77466]
[1673907414498,19.38,24.22,24.167,10.98030357]
[1673907414823,19.38,24.22,24.17,19.21]
[1673907414824,30.99,24.219,24.17,19.21]
[1673907415011,30.99,24.219,24.172,7.92391145]
[1673907415224,29.49,24.219,24.18,19.22]
[1673907415444,19.38,24.21,24.181,4.7717]
[1673907415636,19.38,24.21,24.174,6.33597309]
[1673907415637,31.0,24.209,24.174,6.33597309]
[1673907416380,31.0,24.209,24.175,21.46196354]
[1673907416579,31.0,24.209,24.176,5.16235362]
[1673907416787,30.99,24.219,24.176,56.65601245]
[1673907417006,30.99,24.219,24.177,55.69539984]
[1673907417223,30.99,24.219,24.178,7.81272815]
[1673907417434,30.99,24.219,24.179,6.96972012]
[1673907417645,21.46196354,24.218,24.2,3858.62031631]
[1673907417858,30.99,24.217,24.2,3858.62031631]
[1673907418066,3.08536304,24.237,24.227,76.51657354]
[1673907418282,188.98414383,24.283,24.227,76.51657354]
[1673907418283,7.77135968,24.307,24.228,8.77207382]
[1673907418493,42.78117879,24.318,24.229,4.83844252]
[1673907418494,30.93,24.264,24.229,4.83844252]
[1673907418711,30.93,24.264,24.229,34.60460024]
[1673907418900,30.93,24.264,24.2,3878.01031631]
[1673907418901,30.93,24.264,24.231,5.1410997]
[1673907419102,19.38,24.26,24.231,5.1410997]
[1673907419316,30.94,24.259,24.231,5.1410997]
[1673907419527,30.94,24.259,24.232,27.97944105]
[1673907419737,30.94,24.259,24.223,5.73980933]
[1673907419738,19.38,24.25,24.223,5.73980933]
[1673907419972,19.38,24.25,24.2,3878.01031631]
[1673907419973,30.95,24.249,24.201,4.68194128]
[1673907420171,19.33,24.24,24.209,5.35001158]
[1673907420368,19.19,24.23,24.201,26.82814036]
[1673907420579,30.98,24.229,24.21,27.97944105]
[1673907420790,30.98,24.229,24.202,5.53913591]
[1673907420997,30.98,24.229,24.209,32.37480703]
[1673907421210,30.96,24.239,24.21,4.03729154]
[1673907421422,20.0,24.238,24.206,6.12331115]
[1673907421636,30.97,24.237,24.206,6.12331115]
[1673907421845,20.0,24.236,24.206,27.91284554]
[1673907422067,30.97,24.235,24.207,32.37480703]
[1673907422275,20.0,24.234,24.208,6.290746]
[1673907422598,30.97,24.233,24.209,32.37480703]
[1673907422783,30.97,24.233,24.21,5.58933864]
[1673907422996,30.97,24.233,24.21,4.69126416]
[1673907423225,30.97,24.233,24.21,27.9083008]
[1673907423442,19.29,24.23,24.211,37.22814036]
[1673907423759,19.29,24.23,24.2,3858.62031631]
[1673907423760,19.33,24.22,24.2,3858.62031631]
[1673907423962,30.99,24.219,24.2,3858.62031631]
[1673907424160,20.0,24.218,24.2,3858.62031631]
[1673907424365,30.99,24.217,24.2,3858.62031631]
[1673907424797,19.38,24.21,24.2,3858.62031631]
[1673907424995,31.0,24.209,24.2,3858.62031631]
[1673907425200,30.99,24.215,24.2,3858.62031631]
[1673907425412,20.0,24.214,24.2,3858.62031631]
[1673907425623,19.38,24.21,24.2,3858.62031631]
[1673907425832,51.0,24.209,24.2,3858.62031631]
[1673907426148,108.36257684,24.209,24.2,3858.62031631]
[1673907426478,57.36257684,24.208,24.2,3858.62031631]
[1673907426677,55.87461,24.207,24.2,3858.62031631]
[1673907426887,4.87461,24.206,24.2,3858.62031631]
[1673907427222,31.01,24.205,24.2,3858.62031631]
[1673907427536,67.6228055,24.204,24.2,3710.21899538]
[1673907427732,35.88461,24.203,24.2,3661.13031843]
[1673907427946,24.87461,24.202,24.2,3616.57327155]
[1673907428144,35.88461,24.201,24.2,3568.2184028]
[1673907428349,130.30257544,24.201,24.2,3485.88212728]
[1673907428560,192.64667538,24.201,24.2,3475.88212728]
[1673907429403,192.64667538,24.201,24.2,3389.68311763]
[1673907429647,192.64667538,24.201,24.2,3379.68311763]
[1673907429842,192.64667538,24.201,24.2,3137.2700907]
[1673907430056,192.64667538,24.201,24.2,3101.54004887]
[1673907430367,173.55275871,24.201,24.2,2981.30004887]
[1673907430686,204.92564212,24.201,24.2,2971.30004887]
[1673907431089,187.92564212,24.201,24.2,2971.30004887]
[1673907431618,187.92564212,24.201,24.2,2961.30004887]
[1673907432160,166.46367858,24.201,24.2,2879.4394104]
[1673907432366,187.92564212,24.201,24.2,2839.9525771]
[1673907432776,187.92564212,24.201,24.2,2600.91681451]
[1673907432979,166.46367858,24.201,24.2,2600.91681451]
[1673907433607,166.46367858,24.201,24.2,2590.91681451]
[1673907433818,51.01,24.201,24.2,2590.91681451]
[1673907434991,82.63186624,24.201,24.2,2590.91681451]
[1673907435515,108.96843978,24.201,24.2,2555.91681451]
[1673907436133,123.84673292,24.201,24.2,2555.91681451]
[1673907436350,82.63186624,24.201,24.2,2545.91681451]
[1673907437406,118.97212292,24.201,24.2,2535.91681451]
[1673907438356,62.63186624,24.201,24.2,2525.91681451]
[1673907438574,31.0,24.209,24.2,2525.91681451]
[1673907438971,19.36,24.21,24.2,2525.91681451]
[1673907439399,52.45196354,24.219,24.2,2525.91681451]
[1673907439612,19.3,24.21,24.2,2525.91681451]
[1673907440019,33.80586624,24.209,24.2,2525.91681451]
[1673907440230,24.87461,24.208,24.2,2525.91681451]
[1673907440440,20.0,24.208,24.2,2525.91681451]
[1673907440669,53.80586624,24.208,24.2,2525.91681451]
[1673907441280,33.80586624,24.208,24.2,2525.91681451]
[1673907442025,4.87461,24.207,24.2,2525.91681451]
[1673907442229,35.87461,24.207,24.2,2525.91681451]
[1673907442441,33.80586624,24.206,24.2,2403.04121451]
[1673907442652,55.88461,24.205,24.2,2403.04121451]
[1673907442861,4.87461,24.204,24.2,2403.04121451]
[1673907443086,72.47196354,24.205,24.2,2403.04121451]
[1673907443087,20.0,24.205,24.2,2403.04121451]
[1673907443281,20.0,24.209,24.2,2403.04121451]
[1673907443493,19.3,24.21,24.2,2403.04121451]
[1673907443698,31.0,24.209,24.2,2403.04121451]
[1673907443918,19.38,24.22,24.2,2403.04121451]
[1673907444548,30.98,24.228,24.2,2403.04121451]
[1673907444876,52.44196354,24.229,24.2,2403.04121451]
[1673907445094,30.98,24.229,24.201,25.72223228]
[1673907445399,19.35,24.23,24.202,48.12070275]
[1673907445591,19.35,24.23,24.202,34.81459108]
[1673907445800,19.35,24.23,24.201,27.05715895]
[1673907445801,38.53433076,24.233,24.203,39.32125775]
[1673907446013,30.96,24.239,24.203,39.32125775]
[1673907446014,19.47,24.25,24.204,25.27427406]
[1673907446230,19.47,24.25,24.206,6.23138426]
[1673907446441,19.47,24.25,24.209,4.4060938]
[1673907446638,19.47,24.25,24.209,24.4060938]
[1673907447070,19.47,24.25,24.21,39.08456827]
[1673907447273,27.96686788,24.259,24.212,42.35]
[1673907447481,19.37,24.26,24.213,6.15198669]
[1673907447693,19.37,24.26,24.216,5.18222553]
[1673907447911,0.52934102,24.265,24.222,6.90225628]
[1673907448119,30.93,24.264,24.223,20.0]
[1673907448330,30.93,24.264,24.225,6.17570724]
[1673907448550,4.87461,24.263,24.225,6.17570724]
[1673907448868,0.52934102,24.265,24.226,38.08192441]
[1673907449191,0.52934102,24.265,24.227,6.58896259]
[1673907449504,30.93,24.264,24.228,43.75215198]
[1673907449709,19.3,24.26,24.228,38.08192441]
[1673907449921,30.94,24.259,24.229,38.08192441]
[1673907450125,30.94,24.259,24.223,20.0]
[1673907450126,4.87461,24.258,24.223,20.0]
[1673907450329,19.47,24.25,24.22,66.29176518]
[1673907450542,30.95,24.249,24.22,6.95558578]
[1673907450751,30.94,24.257,24.22,6.95558578]
[1673907450959,19.47,24.25,24.219,154.22326827]
[1673907451185,30.95,24.249,24.219,114.0987]
[1673907451585,20.0,24.248,24.219,114.0987]
[1673907451798,30.95,24.247,24.219,114.0987]
[1673907452239,20.0,24.246,24.219,114.0987]
[1673907452445,30.96,24.245,24.219,114.0987]
[1673907452854,20.0,24.244,24.219,114.0987]
[1673907453184,19.42,24.24,24.219,114.0987]
[1673907453373,19.42,24.24,24.211,40.12456827]
[1673907453374,35.83461,24.239,24.211,40.12456827]
[1673907453584,35.83461,24.239,24.2,2403.04121451]
[1673907453585,19.34,24.23,24.201,4.93521341]
[1673907453798,55.85461,24.229,24.2,2443.16578278]
[1673907454028,19.47,24.22,24.2,2403.04121451]
[1673907454214,19.42,24.24,24.201,6.72106982]
[1673907454430,19.47,24.23,24.2,2403.04121451]
[1673907454642,24.87461,24.229,24.2,2403.04121451]
[1673907454857,50.98,24.229,24.201,5.18708768]
[1673907455065,77.94,24.24,24.201,5.18708768]
[1673907455066,30.96,24.238,24.201,5.18708768]
[1673907455286,19.29,24.23,24.201,5.18708768]
[1673907455473,30.98,24.229,24.201,5.18708768]
[1673907456318,30.98,24.229,24.2,2403.04121451]
[1673907456319,19.29,24.22,24.2,2403.04121451]
[1673907456946,30.99,24.219,24.2,2403.04121451]
[1673907457174,20.0,24.218,24.2,2439.77399892]
[1673907457379,30.99,24.217,24.2,2403.04121451]
[1673907457706,20.0,24.216,24.2,2403.04121451]
[1673907457905,30.99,24.215,24.2,2403.04121451]
[1673907458644,20.0,24.214,24.2,2403.04121451]
[1673907458855,31.0,24.213,24.2,2403.04121451]
[1673907459069,19.3,24.21,24.2,2403.04121451]
[1673907459268,51.0,24.209,24.2,2403.04121451]
[1673907460334,4.87461,24.208,24.2,2403.04121451]
[1673907460518,31.0,24.207,24.2,2403.04121451]
[1673907460728,20.0,24.206,24.2,2403.04121451]
[1673907460938,31.01,24.205,24.2,2403.04121451]
[1673907461257,20.0,24.204,24.2,2403.04121451]
[1673907461467,31.01,24.203,24.2,2403.04121451]
[1673907461676,20.0,24.202,24.2,2403.04121451]
[1673907461898,31.01,24.201,24.2,2228.04121451]
[1673907462095,71.35201201,24.201,24.2,2216.17571451]
[1673907462428,145.11201199,24.201,24.2,2138.33554707]
[1673907462829,162.11201199,24.201,24.2,1964.91832064]
[1673907463039,162.11201199,24.201,24.2,1828.04689967]
[1673907463249,114.44840876,24.201,24.2,1521.08827369]
[1673907463474,242.64840876,24.201,24.2,1399.21832452]
[1673907463687,114.44840876,24.201,24.2,1152.46731753]
[1673907463896,97.44840876,24.201,24.2,1123.38868135]
[1673907464111,97.44840876,24.201,24.2,1053.26868135]
[1673907464322,157.29550667,24.201,24.2,1007.71345571]
[1673907464528,157.29550667,24.201,24.2,894.78110369]
[1673907464850,157.29550667,24.201,24.2,789.07682349]
[1673907465032,157.29550667,24.201,24.2,486.8821299]
[1673907465250,157.29550667,24.201,24.2,338.40072316]
[1673907465564,124.46355209,24.201,24.2,286.5590088]
[1673907465787,124.46355209,24.201,24.2,226.4390088]
[1673907466101,82.89975333,24.201,24.2,216.4390088]
[1673907466420,82.84553047,24.201,24.2,216.4390088]
[1673907466616,55.88461,24.201,24.2,216.4390088]
[1673907467151,55.88461,24.201,24.2,206.4390088]
[1673907467766,72.88461,24.201,24.2,206.4390088]
[1673907468182,95.97693351,24.201,24.2,196.4390088]
[1673907468416,95.97693351,24.201,24.2,76.1990088]
[1673907469254,95.97693351,24.201,24.2,66.1990088]
[1673907470309,95.97693351,24.201,24.2,56.1990088]
[1673907471143,95.97693351,24.201,24.2,46.1990088]
[1673907471355,95.97693351,24.201,24.154,114.2382]
[1673907471571,19.48,24.18,24.154,114.2382]
[1673907471761,20.0,24.179,24.154,114.2382]
[1673907472615,19.48,24.17,24.154,114.2382]
[1673907474730,19.48,24.17,24.146,114.5785]
[1673907474950,19.48,24.17,24.145,2.01900986]
[1673907476816,47.07899018,24.169,24.145,2.01900986]
[1673907477235,27.07899018,24.168,24.145,2.01900986]
[1673907477460,51.06,24.167,24.145,2.01900986]
[1673907477672,31.05,24.168,24.145,2.01900986]
[1673907477990,20.0,24.166,24.145,2.01900986]
[1673907478384,20.0,24.168,24.145,2.01900986]
[1673907478599,31.06,24.167,24.145,2.01900986]
[1673907478813,20.0,24.166,24.145,2.01900986]
[1673907479254,31.06,24.165,24.145,2.01900986]
[1673907479857,19.48,24.16,24.145,2.01900986]
[1673907480067,31.06,24.165,24.145,2.01900986]
[1673907480279,24.87461,24.164,24.145,2.01900986]
[1673907480596,31.06,24.163,24.145,2.01900986]
[1673907480806,35.93461,24.163,24.145,2.01900986]
[1673907481032,63.01360018,24.163,24.145,2.01900986]
[1673907481343,27.07899018,24.162,24.145,2.01900986]
[1673907481659,19.34,24.16,24.145,2.01900986]
[1673907481853,35.94461,24.159,24.145,2.01900986]
[1673907482066,4.87461,24.158,24.145,2.01900986]
[1673907482273,31.07,24.157,24.145,2.01900986]
[1673907482484,24.87461,24.156,24.145,2.01900986]
[1673907482703,19.48,24.15,24.145,2.01900986]
[1673907482932,35.95461,24.149,24.145,2.01900986]
[1673907483118,24.87461,24.148,24.145,2.01900986]
[1673907483328,35.95461,24.147,24.145,2.01900986]
[1673907483553,4.87461,24.146,24.145,9.86e-06]
[1673907483751,4.87461,24.146,24.12,53.9]
[1673907483752,72.95461,24.146,24.12,53.9]
[1673907483967,19.32,24.14,24.12,53.9]
[1673907484296,129.50425442,24.139,24.12,53.9]
[1673907484486,4.87461,24.138,24.12,53.9]
[1673907484720,19.48,24.13,24.12,53.9]
[1673907484910,51.1,24.129,24.12,53.9]
[1673907485221,39.93816171,24.129,24.12,53.9]
[1673907485433,19.48,24.13,24.12,53.9]
[1673907485647,26.33657354,24.138,24.12,53.9]
[1673907485847,51.09,24.137,24.12,53.9]
[1673907486287,26.33657354,24.136,24.12,53.9]
[1673907486521,19.48,24.13,24.12,53.9]
[1673907486707,51.1,24.129,24.12,53.9]
[1673907487126,75.86549505,24.129,24.12,53.9]
[1673907487338,4.87461,24.128,24.12,53.9]
[1673907487567,31.11,24.127,24.12,53.9]
[1673907487758,4.87461,24.126,24.12,53.9]
[1673907487972,31.11,24.125,24.12,53.9]
[1673907488290,4.87461,24.124,24.12,53.9]
[1673907488612,69.57196354,24.123,24.12,53.9]
[1673907488824,24.87461,24.122,24.12,43.9]
[1673907489037,35.98461,24.121,24.12,43.9]
[1673907489247,55.98461,24.121,24.091,42.35]
[1673907489453,44.19461,24.12,24.091,41.85]
[1673907489669,19.36,24.11,24.091,41.85]
[1673907490281,52.92606951,24.109,24.091,41.85]
[1673907490503,4.87461,24.108,24.091,41.85]
[1673907490719,37.30172218,24.108,24.091,41.85]
[1673907491127,19.38,24.1,24.091,41.85]
[1673907491341,24.87461,24.099,24.065,115.2005]
[1673907491654,19.48,24.09,24.065,115.2005]
[1673907491848,19.48,24.09,24.063,115.3394]
[1673907491849,56.03461,24.089,24.063,115.3394]
[1673907492064,4.87461,24.088,24.063,115.3394]
[1673907492602,24.87461,24.088,24.063,115.3394]
[1673907493223,31.16,24.087,24.063,115.3394]
[1673907493561,4.87461,24.087,24.063,115.3394]
[1673907494084,19.48,24.09,24.064,21.46196354]
[1673907494286,31.14,24.099,24.064,21.46196354]
[1673907494502,4.87461,24.098,24.063,115.3394]
[1673907494716,31.15,24.097,24.063,115.3394]
[1673907494903,31.15,24.097,24.064,24.38204802]
[1673907495341,31.14,24.099,24.065,6.51708261]
[1673907495550,31.14,24.099,24.066,17.0]
[1673907497216,20.0,24.098,24.066,17.0]
[1673907497426,31.15,24.097,24.066,17.0]
[1673907497658,20.0,24.096,24.066,17.0]
[1673907497846,31.15,24.095,24.066,17.0]
[1673907498394,19.38,24.11,24.066,17.0]
[1673907498581,6.8382,24.089,24.068,6.41512395]
[1673907498790,6.8382,24.089,24.069,20.0]
[1673907499000,6.8382,24.089,24.07,5.23126433]
[1673907499207,6.8382,24.089,24.071,20.0]
[1673907499638,31.13,24.108,24.071,20.0]
[1673907499864,80.15982226,24.146,24.072,24.48332315]
[1673907499865,19.43,24.12,24.072,24.48332315]
[1673907500087,19.43,24.12,24.073,6.02876502]
[1673907500280,20.0,24.119,24.075,5.54800522]
[1673907500485,31.12,24.118,24.075,5.54800522]
[1673907500693,20.0,24.117,24.077,4.51150762]
[1673907500906,31.12,24.116,24.078,17.0]
[1673907501134,20.0,24.115,24.079,20.0]
[1673907501348,31.12,24.119,24.08,17.0]
[1673907501535,31.12,24.119,24.082,5.86933146]
[1673907501751,31.12,24.119,24.083,37.0]
[1673907501955,26.33657354,24.118,24.083,72.18152138]
[1673907502167,31.12,24.117,24.084,35.18152138]
[1673907502497,4.87461,24.116,24.084,35.18152138]
[1673907502710,19.48,24.11,24.084,35.18152138]
[1673907502917,31.13,24.109,24.084,35.18152138]
[1673907503235,20.0,24.108,24.079,6.40629999]
[1673907503438,31.13,24.107,24.073,4.33021751]
[1673907503636,20.0,24.106,24.077,42.35]
[1673907503850,20.0,24.106,24.07,39.99262661]
[1673907503851,31.14,24.105,24.07,39.99262661]
[1673907504061,31.14,24.105,24.073,7.3508081]
[1673907504693,31.14,24.105,24.064,41.9857554]
[1673907504903,4.87461,24.104,24.073,20.0]
[1673907505111,31.14,24.103,24.073,20.0]
[1673907505632,31.14,24.103,24.074,7.96819825]
[1673907506054,31.14,24.105,24.074,7.96819825]
[1673907506368,52.60196354,24.105,24.064,7.615248]
[1673907506575,41.46196354,24.104,24.064,7.615248]
[1673907506896,31.14,24.103,24.072,160.6546]
[1673907507103,20.0,24.102,24.072,118.3046]
[1673907507317,31.14,24.101,24.072,123.57402697]
[1673907507521,31.14,24.103,24.072,118.3046]
[1673907507738,19.34,24.1,24.072,118.3046]
[1673907507951,51.14,24.099,24.072,118.3046]
[1673907508282,55.92734,24.099,24.072,118.3046]
[1673907508896,55.92734,24.099,24.065,5.70620005]
[1673907509102,55.92734,24.099,15.61,2.0]
[1673907509103,19.34,24.08,24.05,114.2358]
[1673907509334,55.95734,24.079,24.051,118.1486]
[1673907509530,35.95734,24.079,24.051,118.1486]
[1673907509947,4.78734,24.079,24.051,118.1486]
[1673907510271,20.0,24.087,24.051,125.80528103]
[1673907510475,35.94734,24.086,24.052,27.1742633]
[1673907510679,24.78734,24.085,24.052,27.1742633]